Cogmind - Beta 14 @@@ ROGUE MODE // 2024.08.27 @ 23:17:51 Player: JohnnyDongs Result: Destroyed by H-61 Shepherd with Heavy Assault Cannon Performance ------------- Evolutions (3) 1500 Regions Visited (9) 1800 Robots Destroyed (86) 430 Value Destroyed (3451) 3451 Prototype IDs (4) 80 Alien Tech Used (0) 0 Bonus (1767) 1767 TOTAL SCORE: 9028 Bonus ------- High Alert Combat Kills 532 Follower Combat Kills 35 Entered Garrisons 200 Used RIF Installer 500 Entered DSFs 500 Cogmind --------- Core Integrity 0/700 Matter 40/300 Energy 81/100 System Corruption 6% Temperature Cool (0) Movement Core (50) Location -7/DSF Parts ------- > --- POWER (1) -------- (None) > --- PROPULSION (4) --- (None) > --- UTILITY (6) ------ Reaction Control System > --- WEAPON (2) ------- (None) > --- INVENTORY (5) ---- High-capacity Storage Unit Large Matter Pod (0) Authchip [R/Combat] Authchip [R/Combat] Hypervelocity Coil Gun Peak State ------------ > --- POWER ------------ Nuclear Core > --- PROPULSION ------- Armored Huge Wheel Armored Huge Wheel > --- UTILITY ---------- Medium Storage Unit Light Armor Plating Makeshift Hacking Suite Authchip [R/Combat] Relay Coupler [NC] Relay Coupler [Grunt] > --- WEAPON ----------- Gauss Rifle Gauss Rifle > --- INVENTORY -------- Medium Treads High-capacity Matter Pod Hardlight Generator Authchip [R/Combat] Authchip [R/Combat] Authchip [R/Combat] Relay Coupler [Grunt] Subdweller Shrapnel Launcher Datajack [Rating: 43] Favorites ----------- Power Light Nuclear Core Engine Ion Engine Power Core Light Nuclear Core Propulsion Light Treads Treads Light Treads Leg Aluminum Leg Wheel Armored Huge Wheel Flight Unit Surge Thruster Utility Makeshift Hacking Suite Device Improved Heat Sink Storage Medium Storage Unit Processor Signal Interpreter Hackware Makeshift Hacking Suite Protection Light Armor Plating Weapon Subdweller Beam Cannon Energy Gun Subdweller Laser Energy Cannon Subdweller Beam Cannon Ballistic Gun Subdweller Machine Gun Ballistic Cannon Advanced Assault Cannon Launcher Subdweller Shrapnel Launcher Special Weapon Mining Laser Special Melee Weapon Datajack Build | -11 -10 -10 -8 -8 -8 -7 -7 -7 -7 ------- Run | Yrd Mat Sub Mat Gar Mat Fac Was Fac DSF Slots Evolved 6 | . . . 4 . . 2 . . . Power . | . . . . . . . . . . Propulsion 2 | . . . 1 . . 1 . . . Utility 4 | . . . 3 . . 1 . . . Weapon . | . . . . . . . . . . Parts Attached 135 | 7 12 30 14 24 17 29 . . 2 Power 10 | 1 . 2 1 2 2 2 . . . Engine 3 | 1 . 2 . . . . . . . Core 7 | . . . 1 2 2 2 . . . Reactor . | . . . . . . . . . . Propulsion 30 | 2 3 6 1 8 4 6 . . . Treads 9 | 2 1 5 1 . . . . . . Leg 12 | . . . . 5 4 3 . . . Wheel 6 | . 2 1 . . . 3 . . . Hover . | . . . . . . . . . . Flight 3 | . . . . 3 . . . . . Utility 33 | 2 4 3 5 7 3 7 . . 2 Device 12 | 2 2 . 2 3 . 1 . . 2 Storage 1 | . 1 . . . . . . . . Processor 2 | . . 2 . . . . . . . Hackware 7 | . . . 3 . 2 2 . . . Protection 11 | . 1 1 . 4 1 4 . . . Artifact . | . . . . . . . . . . Weapon 62 | 2 5 19 7 7 8 14 . . . Energy Gun 5 | . . . 2 1 . 2 . . . Energy Cannon 11 | . 2 7 . 1 1 . . . . Ballistic Gun 27 | 2 1 11 4 2 3 4 . . . Ballistic Cannon 4 | . 1 . . . . 3 . . . Launcher 7 | . . . 1 3 . 3 . . . Special Weapon 2 | . 1 1 . . . . . . . Impact Weapon . | . . . . . . . . . . Slashing Weapon . | . . . . . . . . . . Piercing Weapon . | . . . . . . . . . . Special Melee Weapon 6 | . . . . . 4 2 . . . Unidentified Prototypes 2 | . . . 1 . . 1 . . . Parts Lost 36 | . 3 2 4 9 3 14 . . 1 Power 4 | . . . 1 1 . 2 . . . Propulsion 11 | . 1 1 1 4 . 4 . . . Utility 11 | . 1 1 1 1 2 4 . . 1 Weapon 10 | . 1 . 1 3 1 4 . . . Highest Loss Streak 7 | . 2 1 3 4 1 7 . . 1 To Critical Strikes . | . . . . . . . . . . Average Slot Usage (%) 89 | . 98 95 85 92 98 67 . . . Engine 5 | . 14 10 5 . . . . . . Core 3 | . . . 3 8 9 5 . . . Treads 12 | . 19 27 11 1 . . . . . Leg 6 | . . . . 16 27 6 . . . Wheel 2 | . 8 . 4 . . 6 . . . Device 5 | . 22 . 7 5 1 2 . . . Storage 8 | . 4 14 9 9 9 2 . . . Processor 1 | . . 4 9 . . . . . . Hackware 12 | . . . 18 27 33 20 . . . Protection 4 | . 1 9 . 1 . 7 . . . Energy Gun 1 | . . . 4 3 . . . . . Energy Cannon 6 | . 8 8 . 6 6 . . . . Ballistic Gun 11 | . 13 18 10 6 6 4 . . . Ballistic Cannon 1 | . 4 . . . . 6 . . . Peak Build Rating 43 | 9 9 14 27 30 30 43 1 1 4 Average Rating 19 | 5 8 11 24 26 28 32 1 1 2 On Entrance 11 | . 9 7 14 26 27 24 1 1 1 Naked Turns 103 | . . . . . . 18 62 13 10 Heaviest Build 45 | 9 22 30 28 31 31 45 . . 1 Greatest Support 56 | 40 40 40 40 40 43 56 3 3 3 Greatest Overweight (x) 7 | . 1 1 1 7 1 3 . . . Average Overweight (x) . | . . . . 1 . . . . . Largest Inventory Capacity 10 | 5 10 10 10 10 10 10 5 5 5 Average Capacity 8 | 5 6 10 10 10 10 6 5 5 5 Most Carried 10 | . 8 10 9 10 10 10 5 5 5 Average Carried 7 | . 3 9 5 9 9 5 4 5 5 Final Capacity 10 | 5 10 10 10 10 10 5 5 5 5 Final Carried 10 | . 7 10 7 10 10 5 5 5 5 Class Distribution -------------------- 53% | Mutant 35% | Hacker-Mutant 10% | Derelict-Mutant Dominant Class ---------------- Mutant | -10/Materials Mutant | -10/Subcaves Hacker-Mutant | -8/Materials Hacker-Mutant | -8/Garrison Hacker-Mutant | -8/Materials Mutant | -7/Factory Mutant | -7/Waste Mutant | -7/Factory Mutant | -7/DSF Resources | -11 -10 -10 -8 -8 -8 -7 -7 -7 -7 ----------- Run | Yrd Mat Sub Mat Gar Mat Fac Was Fac DSF Matter Collected 2738 | 278 367 508 188 570 189 638 . . . Remotely . | . . . . . . . . . . Salvage Created 2640 | 95 539 187 297 636 199 687 . . . Parts 157 | 8 24 13 18 48 12 34 . . . Haulers Intercepted 3 | . 2 . . . . 1 . . . Recyclers Shooed 4 | . 1 . 1 . . 2 . . . Parts Field Recycled . | . . . . . . . . . . Retrieved Matter . | . . . . . . . . . . Parts Self-Destructed 14 | . . 14 . . . . . . . Prevented . | . . . . . . . . . . Kills | -11 -10 -10 -8 -8 -8 -7 -7 -7 -7 ------- Run | Yrd Mat Sub Mat Gar Mat Fac Was Fac DSF Combat Hostiles Destroyed 69 | . 10 5 10 23 6 15 . . . Guns 24 | . 5 3 7 6 1 2 . . . Cannons 22 | . 5 2 . 4 5 6 . . . AOE 22 | . . . 3 12 . 7 . . . Classes Destroyed 17 | 2 6 2 1 1 . 5 . . . Worker 6 | . 1 . . . . 5 . . . Builder 2 | . 1 . 1 . . . . . . Tunneler 1 | 1 . . . . . . . . . Hauler 3 | . 2 . . . . 1 . . . Recycler 4 | 1 1 . . . . 2 . . . Watcher 1 | . 1 . . . . . . . . Swarmer 20 | . 3 . 4 10 3 . . . . Cutter 2 | . . . . 2 . . . . . Grunt 28 | . 7 . 5 8 1 7 . . . Duelist 2 | . . . . . . 2 . . . Sentry 7 | . . . 1 3 2 1 . . . Specialist 1 | . . . . . . 1 . . . Hunter 2 | . . . . . . 2 . . . Programmer 1 | . . . . . . 1 . . . Heavy 1 | . . . . . . 1 . . . Cobbler 1 | . . 1 . . . . . . . Subdweller 5 | . . 5 . . . . . . . Best Kill Streak 7 | 2 4 1 4 7 2 5 . . . Combat Bots Only 7 | . 3 1 3 7 2 5 . . . Max Kills in Single Turn 4 | 1 1 1 2 4 1 2 . . . Gunslinging 1 | . . . 1 . . . . . . Exploded 4 | . . . 2 4 . 2 . . . Melee . | . . . . . . . . . . Uniques/NPCs Destroyed . | . . . . . . . . . . Combat | -11 -10 -10 -8 -8 -8 -7 -7 -7 -7 -------- Run | Yrd Mat Sub Mat Gar Mat Fac Was Fac DSF Hostile Shots Fired 490 | . 67 36 75 79 33 196 . . 4 Missed 129 | . 15 5 17 18 5 69 . . . Damage Taken 5752 | . 617 791 680 873 334 2233 . . 224 Core 1329 | . 81 88 150 214 85 517 . . 194 Absorbed by Shields 104 | . . . . 84 20 . . . . Redirected to Shielding 56 | . . . . . . 56 . . . Core Remaining (%) 50 | 100 . 32 . . 18 . . . . Volleys Fired 330 | 4 85 64 37 74 14 52 . . . Largest 2 | 2 2 2 2 2 2 2 . . . Hottest 120 | 40 100 110 88 120 103 96 . . . Shots Fired 527 | 8 141 92 69 97 27 93 . . . Gun 294 | 8 78 50 67 38 14 39 . . . Cannon 183 | . 49 26 . 52 13 43 . . . Launcher 20 | . . . 2 7 . 11 . . . Special 30 | . 14 16 . . . . . . . Kinetic 333 | 8 87 50 58 23 14 93 . . . Thermal 181 | . 54 42 11 67 7 . . . . Explosive 1 | . . . . 1 . . . . . Electromagnetic 12 | . . . . 6 6 . . . . Robot Hit Streak 22 | 4 11 22 6 13 8 8 . . . Robot Miss Streak 10 | 1 7 2 10 4 2 8 . . . Penetration Max 1 | . . . . . . 1 . . . Secondary Targets 3 | . . . 2 1 . . . . . Max Gunslinging Chain 1 | . . . 1 1 . . . . . Shots Hit Robots 289 | 6 83 53 32 33 24 58 . . . Core Hits 148 | 5 28 12 16 37 9 41 . . . Critical Kills . | . . . . . . . . . . Critical Parts Destroyed 2 | . 1 . . . . 1 . . . Critical Strikes 5 | . 2 1 . . . 2 . . . Destroy 3 | . 1 1 . . . 1 . . . Blast 2 | . 1 . . . . 1 . . . Melee Attacks 12 | . . . . . 9 3 . . . Impact . | . . . . . . . . . . Slashing . | . . . . . . . . . . Piercing . | . . . . . . . . . . Sneak Attacks 3 | . . . . . 3 . . . . Combat Hostiles . | . . . . . . . . . . Follow-up Attacks . | . . . . . . . . . . Damage Inflicted 7590 | 47 1075 1187 1097 1438 376 2370 . . . Guns 2886 | 47 462 848 607 316 112 494 . . . Cannons 2051 | . 517 339 . 307 264 624 . . . Explosions 2636 | . 96 . 490 815 . 1235 . . . Melee . | . . . . . . . . . . Ramming 17 | . . . . . . 17 . . . Kinetic 5241 | 47 577 848 704 869 112 2084 . . . Thermal 1981 | . 402 339 393 442 136 269 . . . Explosive 53 | . . . . 53 . . . . . Electromagnetic 298 | . 96 . . 74 128 . . . . Impact . | . . . . . . . . . . Slashing . | . . . . . . . . . . Piercing . | . . . . . . . . . . Highest Corruption 6 | . 2 2 . . 3 6 6 6 6 Average Corruption 2 | . 2 2 . . 3 3 6 6 6 Corruption Purged . | . . . . . . . . . . Corruption Blocked . | . . . . . . . . . . Effects 53 | . 2 34 . . 1 14 1 . 1 Message Errors 8 | . . 5 . . . 1 1 . 1 Matter Fused 10 | . 1 6 . . . 3 . . . Heat Flow Errors 13 | . . 9 . . 1 3 . . . Energy Discharges 9 | . 1 6 . . . 2 . . . Data Loss (minor) 6 | . . 2 . . . 4 . . . Data Loss (major) 2 | . . 2 . . . . . . . Misfires 2 | . . 1 . . . 1 . . . Alerts 3 | . . 3 . . . . . . . Overload Shots . | . . . . . . . . . . Overflow Damage 193 | . . . 87 28 . 78 . . . Projectiles 1 | . . . . 1 . . . . . Explosions 192 | . . . 87 27 . 78 . . . Melee . | . . . . . . . . . . Knockbacks 8 | . 2 . . . . 6 . . . Impact 1 | . . . . . . 1 . . . Kinetic 7 | . 2 . . . . 5 . . . Secondary . | . . . . . . . . . . Self-Inflicted Damage 353 | . 41 . . 74 . 238 . . . Shots 8 | . 1 . . 3 . 4 . . . Rammed 1 | . . . . . . 1 . . . Targets Rammed 2 | . . . . . . 2 . . . Kicked 1 | . . . . . . 1 . . . Crushed . | . . . . . . . . . . Highest Temperature 271 | . 271 270 241 142 181 204 . . . Average Temperature 68 | . 73 93 102 47 68 57 . . . Received Heat Transfer 2083 | . 180 775 252 318 162 396 . . . Effects 5 | . 1 1 3 . . . . . . Energy Bleed 1 | . . 1 . . . . . . . Interference 4 | . 1 . 3 . . . . . . Siege Activations . | . . . . . . . . . . Robots Corrupted 1 | . . . . 1 . . . . . Combat Hostiles 1 | . . . . 1 . . . . . Parts Fried 4 | . 1 . . 1 2 . . . . Impact Corruptions 1 | . . . . 1 . . . . . Robots Melted . | . . . . . . . . . . Combat Hostiles . | . . . . . . . . . . Parts Melted 6 | . 2 1 . 2 1 . . . . Heat Transferred 2483 | . 851 444 325 528 185 150 . . . Parts Sabotaged . | . . . . . . . . . . Parts Stolen . | . . . . . . . . . . Parts Stripped . | . . . . . . . . . . Power Chain Reactions . | . . . . . . . . . . Alert | -11 -10 -10 -8 -8 -8 -7 -7 -7 -7 ------- Run | Yrd Mat Sub Mat Gar Mat Fac Was Fac DSF Peak Influence 1192 | 10 258 . 306 1192 791 804 257 165 115 Initial 581 | . 6 . . 198 581 345 257 165 115 Average 525 | 5 128 . 180 766 701 632 254 165 110 Maximum Alert Level 4 | . 1 . 1 4 3 3 1 . . Low Security (%) 25 | 100 82 . 54 1 . . . 100 100 Level 1 16 | . 17 . 45 18 . 5 100 . . Level 2 26 | . . . . 20 60 61 . . . Level 3 27 | . . . . 46 39 33 . . . Level 4 4 | . . . . 12 . . . . . Level 5 . | . . . . . . . . . . High Security . | . . . . . . . . . . Max Security . | . . . . . . . . . . Squads Dispatched 14 | . 2 . 1 . 2 8 . . 1 Investigation 3 | . 1 . . . . 2 . . . Extermination 1 | . . . . . . 1 . . . Reinforcement 8 | . 1 . 1 . 2 3 . . 1 Assault 2 | . . . . . . 2 . . . Garrison . | . . . . . . . . . . Intercept . | . . . . . . . . . . Searches Triggered . | . . . . . . . . . . Construction Impeded 1 | . . . . . . 1 . . . Haulers Reinforced . | . . . . . . . . . . Active Scanning Responses . | . . . . . . . . . . Cargo Convoy Interrupts 1 | . . . . . . 1 . . . Stealth | -11 -10 -10 -8 -8 -8 -7 -7 -7 -7 --------- Run | Yrd Mat Sub Mat Gar Mat Fac Was Fac DSF Distress Signals 1 | . . . . . . 1 . . . Communications Jammed . | . . . . . . . . . . Distress Signals . | . . . . . . . . . . Times Spotted 113 | . 18 7 11 23 10 37 6 . 1 Peak Tracking Total 8 | . 3 2 5 8 4 8 6 . 1 Tactical Retreats 12 | . 3 1 . 2 1 5 . . . Traps | -11 -10 -10 -8 -8 -8 -7 -7 -7 -7 ------- Run | Yrd Mat Sub Mat Gar Mat Fac Was Fac DSF Traps Triggered 10 | . 1 . . 6 . 3 . . . Indirectly . | . . . . . . . . . . Trap Hack Attempts . | . . . . . . . . . . Triggered . | . . . . . . . . . . Disarmed . | . . . . . . . . . . Reprogrammed . | . . . . . . . . . . Reused . | . . . . . . . . . . Traps Extracted . | . . . . . . . . . . Installed . | . . . . . . . . . . Triggered 1 | . . . . . . 1 . . . Machines | -11 -10 -10 -8 -8 -8 -7 -7 -7 -7 ---------- Run | Yrd Mat Sub Mat Gar Mat Fac Was Fac DSF Machines Disabled 23 | . 2 . 2 8 1 10 . . . Max in Single Turn 4 | . 1 . 2 1 1 4 . . . Garrison Access 2 | . . . . . 1 1 . . . Garrison Relay 4 | . . . . 4 . . . . . Machines Repaired . | . . . . . . . . . . Machines Dismantled . | . . . . . . . . . . Machines Sabotaged . | . . . . . . . . . . Overloaded Fab Kills . | . . . . . . . . . . Hacking | -11 -10 -10 -8 -8 -8 -7 -7 -7 -7 --------- Run | Yrd Mat Sub Mat Gar Mat Fac Was Fac DSF Machines Accessed 20 | . 6 1 2 2 3 5 . 1 . Terminals 11 | . 4 . . 2 1 3 . 1 . Fabricators 1 | . . . . . . 1 . . . Repair Stations . | . . . . . . . . . . Recycling Units 3 | . 2 . . . 1 . . . . Scanalyzers 2 | . . . 1 . . 1 . . . Garrison Access 2 | . . . 1 . 1 . . . . Total Hacks 46 | . 17 4 3 6 6 9 . 1 . Successful 33 | . 11 4 3 4 5 5 . 1 . Failed 13 | . 6 . . 2 1 4 . . . Catastrophic 2 | . . . . 1 . 1 . . . Database Lockouts . | . . . . . . . . . . Manual 24 | . 10 . . 3 4 7 . . . Terminals 26 | . 12 . . 6 2 5 . 1 . Fabricators 2 | . . . . . . 2 . . . Repair Stations . | . . . . . . . . . . Recycling Units 7 | . 5 . . . 2 . . . . Scanalyzers 4 | . . . 2 . . 2 . . . Garrison Access 3 | . . . 1 . 2 . . . . Terminal Hacks 12 | . 3 4 . 2 1 1 . 1 . Record 5 | . . 4 . . . 1 . . . Robot Analysis 1 | . . . . . 1 . . . . Prototype ID Bank 1 | . 1 . . . . . . . . Open DSF 1 | . . . . . . . . 1 . Emergency Access Points 1 | . . . . 1 . . . . . Locate Traps 1 | . 1 . . . . . . . . Hauler Manifests 1 | . 1 . . . . . . . . Patrol Navigation 1 | . . . . 1 . . . . . Fabricator Hacks 2 | . . . . . . 2 . . . Load Schematic 1 | . . . . . . 1 . . . Build 1 | . . . . . . 1 . . . Repair Station Hacks . | . . . . . . . . . . Recycling Unit Hacks 4 | . 3 . . . 1 . . . . Report Inventory 3 | . 2 . . . 1 . . . . Retrieve Components 1 | . 1 . . . . . . . . Scanalyzer 4 | . . . 2 . . 2 . . . Insert Component 2 | . . . 1 . . 1 . . . Analyze 2 | . . . 1 . . 1 . . . Garrison Access Hacks 3 | . . . 1 . 2 . . . . Unlock Access 1 | . . . 1 . . . . . . Seal Access 1 | . . . . . 1 . . . . Coupler Status 1 | . . . . . 1 . . . . Unauthorized Hacks 8 | . 5 . . 2 1 . . . . Terminals 6 | . 4 . . 2 . . . . . Botnet 5 | . 3 . . 2 . . . . . Operators 1 | . 1 . . . . . . . . Fabricators . | . . . . . . . . . . Repair Stations . | . . . . . . . . . . Recycling Units 2 | . 1 . . . 1 . . . . Monitor 1 | . . . . . 1 . . . . Tunnel 1 | . 1 . . . . . . . . Scanalyzers . | . . . . . . . . . . Garrison Access . | . . . . . . . . . . Data Cores Recovered . | . . . . . . . . . . Used . | . . . . . . . . . . Hacking Detections 15 | . 6 . 1 2 2 4 . . . Full Trace Events 2 | . . . . . . 2 . . . Feedback Events 1 | . . . . . . 1 . . . Corruption 1 | . . . . . . 1 . . . Feedback Blocked . | . . . . . . . . . . Robot Schematics Acquired . | . . . . . . . . . . Robots Built . | . . . . . . . . . . Authchips . | . . . . . . . . . . Time . | . . . . . . . . . . Total Robot Build Rating . | . . . . . . . . . . Part Schematics Acquired 2 | . . . 1 . . 1 . . . Parts Built . | . . . . . . . . . . Authchips . | . . . . . . . . . . Time 53 | . . . . . . 53 . . . Total Part Build Rating . | . . . . . . . . . . Parts Repaired . | . . . . . . . . . . Time . | . . . . . . . . . . Parts Recycled . | . . . . . . . . . . Recycled Matter . | . . . . . . . . . . Retrieved Matter . | . . . . . . . . . . Retrieved Components 7 | . 7 . . . . . . . . Parts Scanalyzed 2 | . . . 1 . . 1 . . . Part Schematics Acquired 2 | . . . 1 . . 1 . . . Parts Damaged . | . . . . . . . . . . Bothacking | -11 -10 -10 -8 -8 -8 -7 -7 -7 -7 ------------ Run | Yrd Mat Sub Mat Gar Mat Fac Was Fac DSF Used RIF Installer 1 | . . . . 1 . . . . . Robots Hacked 7 | . . . . . 4 3 . . . Non-combat 2 | . . . . . 2 . . . . Combat 5 | . . . . . 2 3 . . . Robot Hacks Applied 8 | . . . . . 5 3 . . . parse_system 1 | . . . . . 1 . . . . generate_anomaly 1 | . . . . . 1 . . . . generate_echo 1 | . . . . . 1 . . . . map_walls 1 | . . . . . 1 . . . . formatsys_high 4 | . . . . . 1 3 . . . Relay Couplers Released 18 | . . . . 17 . 1 . . . Machine Destruction 18 | . . . . 17 . 1 . . . Attached 3 | . . . . . 2 1 . . . Fabnet Peak Effective % . | . . . . . . . . . . Robots Rewired . | . . . . . . . . . . Allies Hacked . | . . . . . . . . . . Hacks Repelled . | . . . . . . . . . . Allies | -11 -10 -10 -8 -8 -8 -7 -7 -7 -7 -------- Run | Yrd Mat Sub Mat Gar Mat Fac Was Fac DSF Total Allies 5 | . . . . . 1 3 1 . . Largest Group 3 | . . . . . 1 3 1 . . Highest-Rated Group 61 | . . . . . 16 61 31 . . Highest-Rated Ally 31 | . . . . . 16 29 31 . . Total Orders 1 | . . . . . 1 . . . . ROAM 1 | . . . . . 1 . . . . Ally Attacks 27 | . . . . . 5 19 3 . . Total Damage 415 | . . . . . 79 273 63 . . Kills 1 | . . . . . 1 . . . . Allies Corrupted . | . . . . . . . . . . Allies Melted . | . . . . . . . . . . Intel | -11 -10 -10 -8 -8 -8 -7 -7 -7 -7 ------- Run | Yrd Mat Sub Mat Gar Mat Fac Was Fac DSF Robot Analysis Total 1 | . . . . . 1 . . . . Derelict Logs Recovered . | . . . . . . . . . . Drone Launches . | . . . . . . . . . . Drone Recoveries . | . . . . . . . . . . Exploration | -11 -10 -10 -8 -8 -8 -7 -7 -7 -7 ------------- Run | Yrd Mat Sub Mat Gar Mat Fac Was Fac DSF Turns Passed 6678 | 80 1021 2038 324 1721 350 1052 62 13 17 Spaces Moved 3548 | 40 487 1073 124 815 184 651 120 26 28 Core 217 | 3 . . . 1 . 39 120 26 28 Treads 1437 | 37 216 992 66 126 . . . . . Legs 1017 | . . . . 576 184 257 . . . Wheels 765 | . 271 81 58 . . 355 . . . Hover . | . . . . . . . . . . Flight 112 | . . . . 112 . . . . . Fastest Speed 50 | 50 95 120 110 120 120 50 50 50 50 Average Speed 147 | 151 133 157 155 183 124 128 50 50 50 Slowest Speed 400 | 160 240 260 260 400 190 260 50 50 50 Overloaded Moves . | . . . . . . . . . . Propulsion Burnouts . | . . . . . . . . . . Robots Hopped . | . . . . . . . . . . Cave-ins Triggered . | . . . . . . . . . . Exploration Rate (%) 38 | 4 81 58 13 89 26 18 67 1 32 Regions Visited 9 Branch Regions 1 Pre-discovered Areas 1 | . 1 . . . . . . . . Known Exits Taken 3 | . . 1 1 . . . . 1 . Unknown Exits Taken 3 | 1 1 . . . 1 . . . . Scrap Searched 7 | . . 7 . . . . . . . Spaces Dug 2 | . . 2 . . . . . . . Terrain Destroyed 245 | . 1 3 36 32 2 171 . . . Melee . | . . . . . . . . . . Projectile 20 | . 1 3 6 . 2 8 . . . AOE 225 | . . . 30 32 . 163 . . . Terrain Rammed . | . . . . . . . . . . Walls Destroyed . | . . . . . . . . . . Machines Disabled . | . . . . . . . . . . Actions | -11 -10 -10 -8 -8 -8 -7 -7 -7 -7 --------- Run | Yrd Mat Sub Mat Gar Mat Fac Was Fac DSF Total 4392 | 50 701 1296 185 947 271 766 121 25 30 Wait 255 | . 99 101 1 4 40 10 . . . Move 3539 | 39 486 1072 123 813 183 651 119 25 28 Hop . | . . . . . . . . . . Pick Up 47 | . 11 10 3 14 1 7 1 . . Fast Attach 60 | 7 5 9 5 13 2 17 . . 2 Attach 24 | . 2 1 6 9 1 5 . . . Detach 10 | . 2 1 3 3 . 1 . . . Swap 51 | . 5 20 3 2 14 7 . . . Drop 58 | . 6 18 4 11 7 11 1 . . Fire 330 | 4 85 64 37 74 14 52 . . . Melee 12 | . . . . . 9 3 . . . Ram 1 | . . . . . . 1 . . . Kick 1 | . . . . . . 1 . . . Crush . | . . . . . . . . . . Escape Stasis 4 | . . . . 4 . . . . . Rewire . | . . . . . . . . . . Trap . | . . . . . . . . . . Miscellaneous . | . . . . . . . . . . Route ------- -11/Scrapyard -10/Materials (discovered 5 exits: [*Mat x3] / [*Min] / *Sub) -10/Subcaves (discovered 2 exits: *Mat x2) -8/Materials -8/Garrison (discovered 3 exits: *Mat x3) -8/Materials -7/Factory (discovered 7 exits: Fac x3 / Sto x2 / *Low x2) -7/Waste -7/Factory -7/DSF History --------- Turn | Location | Event 22 | -11/Scrapyard | Discovered new exit (range 14) 81 | -11/Scrapyard | Entered Materials 310 | -10/Materials | Build established: Mutant 421 | -10/Materials | Discovered new exit (range 16) 634 | -10/Materials | Discovered new exit (range 16) 662 | -10/Materials | Discovered new exit (range 16) 1010 | -10/Materials | Discovered new exit (range 5) 1095 | -10/Materials | Discovered new exit (range 3) 1102 | -10/Materials | Entered Subcaves 2418 | -10/Subcaves | A swath of the cavern ceiling suddenly collapsed 2692 | -10/Subcaves | Discovered new exit (range 4) 2707 | -10/Subcaves | Build established: Derelict-Mutant 2756 | -10/Subcaves | Ambushed by angry Subdweller bent on revenge 2771 | -10/Subcaves | Core integrity fell below 50% 2831 | -10/Subcaves | Identified exit to Materials 2953 | -10/Subcaves | Visited Clippyterm 2958 | -10/Subcaves | Learned Research machine intel 2958 | -10/Subcaves | Learned 40 Factory zone layouts 3054 | -10/Subcaves | Shifting Twisted Machinery released Hvy. Riot Gun 3076 | -10/Subcaves | Shifting Twisted Machinery released Sub. Machine Gun 3086 | -10/Subcaves | Discovered exit to Materials (range 3) 3140 | -10/Subcaves | Entered Materials 3140 | -8/Materials | Evolved 4 slots: Propulsion x1, Utility x3 3357 | -8/Materials | Lost 3 parts (1p1n1u) 3462 | -8/Materials | Identified exit to Garrison 3464 | -8/Materials | Entered Garrison 3478 | -8/Garrison | Build established: Hacker-Mutant 3683 | -8/Garrison | Garrison Relay disabled 3837 | -8/Garrison | Destroyed 7 combat bots 3838 | -8/Garrison | Lost 4 parts (1p1n1u1w) 3876 | -8/Garrison | Triggered checkpoint 3894 | -8/Garrison | Triggered checkpoint 3926 | -8/Garrison | Destroyed 7 combat bots 4060 | -8/Garrison | Discovered new exit (range 10) 4142 | -8/Garrison | Triggered checkpoint 4144 | -8/Garrison | Core integrity fell below 50% 4191 | -8/Garrison | Garrison Relay disabled 4317 | -8/Garrison | Discovered new exit (range 13) 4334 | -8/Garrison | Triggered checkpoint 4363 | -8/Garrison | Garrison Relay disabled 4963 | -8/Garrison | Garrison Relay disabled 5130 | -8/Garrison | Discovered new exit (range 13) 5149 | -8/Garrison | Installed Relay Interface Framework 5185 | -8/Garrison | Entered Materials 5440 | -8/Materials | Core integrity fell below 20% 5511 | -8/Materials | Discovered new exit (range 14) 5535 | -8/Materials | Entered Factory 5535 | -7/Factory | Evolved 2 slots: Propulsion x1, Utility x1 5536 | -7/Factory | Identified exit to Factory 5536 | -7/Factory | Identified exit to Lower Caves 5536 | -7/Factory | Identified exit to Storage 5790 | -7/Factory | Build established: Mutant 5935 | -7/Factory | First assault squad dispatched 5965 | -7/Factory | Lost 3 parts (1p1n1u) 5979 | -7/Factory | Lost 3 allies 6117 | -7/Factory | Lost 7 parts (2n2u3w) 6198 | -7/Factory | Core integrity fell below 50% 6377 | -7/Factory | Cargo convoy interrupted 6569 | -7/Factory | Released all parts (9) 6587 | -7/Factory | Sucked down chute 6587 | -7/Factory | Entered Waste 6588 | -7/Waste | Met a frightened Derelict 6623 | -7/Waste | Spotted C-40 Crusher 6625 | -7/Waste | Spotted C-40 Crusher 6627 | -7/Waste | Spotted C-40 Crusher 6630 | -7/Waste | Spotted C-40 Crusher 6630 | -7/Waste | Spotted C-40 Crusher 6637 | -7/Waste | Spotted C-40 Crusher 6644 | -7/Waste | Discovered new exit (range 10) 6649 | -7/Waste | Entered Factory 6662 | -7/Factory | Identified exit to DSF 6662 | -7/Factory | Entered DSF 6671 | -7/DSF | Core integrity fell below 20% 6677 | -7/DSF | Additional patrols routed to DSF 6679 | -7/DSF | Destroyed by H-61 Shepherd with Heavy Assault Cannon Last Messages --------------- LOCATION=UNKNOWN GOAL=ESCAPE 06662_ Connecting with DSF Access... 06662_ Current location identified: Factory >>Open(DSF) DSF access unlocked. 06662_ EXIT=UNLOCKED: DSF LOCATION=DSF AMBIENT_HEAT=-10 GOAL=ESCAPE 06663_ D&S72G,VRIS6BZSGQLFEJ|RHF3&T0DH71PQG:0IH 06667_ ALERT: Suspicious intruders detected, dispatching Specialist reinforcements to area. 06671_ Acquired Reaction Control System. 06672_ Reaction Control System destroyed. 06672_ Knocked back. 06673_ Acquired Reaction Control System. 06677_ Hostiles detected in DSF, routing additional patrols. 06677_ Penetrated by Slug. Map ----- +----------------------------------------------------+ | | | | | | | | | | | | | | | | | | | ?????????????????????????????????????????????????? | | ?????????????????????????????????????????????????? | | ?????????????????????????????????????????????????? | | ?????????????????????????????????????????????????? | | ?????????""#?????????????????????????????????????? | | ?????????#"#?????????????????????????????????????? | | ??????####"##???????#########????????????????????? | | ??????#"""""######### ! #????????????????????? | | ??????#"""""##!!# # !#????????????????????? | | ?????##"" ^ % #????????????????????? | | ????""""" ^ #????????????????????? | | ????###"" ##!!# ### ###????????????????????? | | ??????### ###!!# ### ;##????????????????????? | | ????????# #?######## !!#????????????????????? | | ???????# !????????# %!!#????????????????????? | | ???????# !????????# % !!#????????????????????? | | ???????## ##???????### @###????????????????????? | | ????????! !????????#]] !!?????????????????????? | | ????????! !????????#]] !!#????????????????????? | | ???????#! !????????#]] !!#????????????????????? | | ???????## #????????### ###????????????????????? | | ???????? #??????????# #??????????????????????? | | ???????? ???????????a H a??????????????????????? | | ????????[ ?????????? ??????????????????????? | | ????????[ ?????????? ??????????????????????? | | ????????[ ????????? ??????????????????????? | | ????????????????????##a a??????????????????????? | | ?????????????????????## #??????????????????????? | | ??????????????????????# ???????????????????????? | | ??????????????????????! ???????????????????????? | | ??????????????????????! ???????????????????????? | | ??????????????????????? ???????????????????????? | | ?????????????????????????????????????????????????? | | ?????????????????????????????????????????????????? | | ?????????????????????????????????????????????????? | | ?????????????????????????????????????????????????? | | ?????????????????????????????????????????????????? | | ?????????????????????????????????????????????????? | | ?????????????????????????????????????????????????? | | ?????????????????????????????????????????????????? | | ?????????????????????????????????????????????????? | +----------------------------------------------------+ Best States ------------- Heat Dissipation 50 Energy Generation 15 Energy Capacity 250 Matter Stores 300 Matter Capacity 300 Sight Range 16 Terrain Scan Range 16 Terrain Scan Density 10 Armor Coverage 825 Core Shielding 20 Evasion (%) 55 Targeting Accuracy 5 Recoil Reduction 2 Offensive Hacking 22 Defensive Hacking 10 Relay Coupler Types 2 Relay Coupler Value 32 Authchip Count 4 Item Schematics ----------------- Sub. Shrapnel Launcher | -8/Materials | Scanalyzed Med. Treads | -7/Factory | Scanalyzed Robot Schematics ------------------ None Fabricated ------------ Nothing Alien Tech Used ----------------- None Achievements -------------- None Challenges ------------ None Game ------ Seed EncryptedDiametricMultirail Manual? 0 Play Time 02:00:50 Cumulative 39.9 hours Start 2024.08.27 @ 21:00:21 End 2024.08.27 @ 23:17:51 Sessions 1 Manual Loads 0 Difficulty Rogue Special Mode None Game No. 28 Rogue 28 Adventurer 0 Explorer 0 Win Type - Total 0 Types 0/0/0/0/0/0/0/0/0 Lore% 15 Gallery% 31 Achievement% 32 Wizard Run 0 Options --------- Layout 1 ASCII 0 Keyboard 0 Movement Numpad Keybinds 0 Fullscreen 1 Font 24/Smallcaps Map View 50x35 Zoom Use 0% Tactical HUD 1 Map Filters NONE Filters NONE Steam 1 RUN: e9bbcebb-0756-4541-8172-c6c2b9682134